bitfinex/quotes_SOLUSD_20251106
["timestamp","ask_amount","ask_price","bid_price","bid_amount"]
[1762467335925,2.1931995,156.02,155.98,0.72]
[1762467336125,2.1931995,156.02,155.99,0.72]
[1762467338034,2.1931995,156.01,155.97,8.11]
[1762467338215,2.1931995,156.01,155.98,0.67]
[1762467339732,2.1931995,156.01,155.97,13.85143075]
[1762467339733,2.8631995,156.0,155.97,7.44]
[1762467339904,2.1931995,155.99,155.97,7.44]
[1762467340338,2.1931995,155.98,155.97,7.44]
[1762467340511,2.8631995,155.98,155.97,7.44]
[1762467340822,2.1931995,155.98,155.94,14.50267527]
[1762467341023,2.1931995,155.97,155.94,8.09]
[1762467341331,2.1931995,155.97,155.94,14.50267067]
[1762467342037,7.08146562,155.98,155.94,14.50267067]
[1762467342225,2.1931995,155.98,155.95,0.67]
[1762467342429,16.02628404,156.0,155.95,0.67]
[1762467342632,2.1931995,155.98,155.95,0.67]
[1762467344246,2.1931995,156.01,155.95,9.27523211]
[1762467344416,2.1931995,156.02,155.96,2.1931995]
[1762467344617,2.1931995,156.02,155.97,7.42]
[1762467344817,2.1931995,156.02,155.97,8.09]
[1762467345046,2.1931995,156.01,155.98,0.67]
[1762467345542,2.1931995,156.01,155.98,7.08098601]
[1762467346914,2.1931995,156.01,155.98,0.67]
[1762467347113,2.1931995,156.01,155.98,7.08101854]
[1762467347621,2.1931995,156.01,155.98,0.67]
[1762467347942,2.1931995,156.01,155.98,7.08106195]
[1762467350340,3.42230713,156.01,155.98,7.08106195]
[1762467354760,3.42230713,156.03,155.99,0.72]
[1762467354925,3.42230713,156.04,156.0,7.42]
[1762467355236,0.2,156.05,156.0,7.42]
[1762467355436,3.42230713,156.04,156.01,0.72]
[1762467355963,4.08230713,156.03,156.0,7.42]
[1762467356252,3.42230713,156.02,156.0,7.42]
[1762467356724,4.08230713,156.02,156.0,7.42]
[1762467356924,3.42230713,156.01,156.0,7.42]
[1762467357950,10.49183524,156.02,156.0,7.42]
[1762467358164,3.42230713,156.01,156.0,7.42]
[1762467358529,4.08230713,156.02,156.0,7.42]
[1762467359155,0.66,156.02,156.0,7.42]
[1762467359765,3.42230713,156.03,156.0,14.55015845]
[1762467360059,10.49133912,156.03,156.0,14.55015845]
[1762467360552,0.2,156.05,156.04,20.592]
[1762467360768,0.2,156.05,156.04,32.15430713]
[1762467360926,0.2,156.05,156.04,8.14]
[1762467361129,0.2,156.05,156.04,7.42]
[1762467361327,0.2,156.05,156.04,8.14]
[1762467363566,7.26820249,156.05,156.04,7.42]
[1762467363738,10.69050962,156.05,155.96,0.72]
[1762467363933,3.42230713,156.0,155.96,8.14]
[1762467364462,4.08230713,156.0,155.96,8.14]
[1762467364636,4.08230713,155.99,155.96,7.42]
[1762467364839,3.42230713,156.01,155.96,7.42]
[1762467365157,3.42230713,156.01,155.97,0.72]
[1762467365351,0.66,156.03,155.98,3.42230713]
[1762467365858,10.49144751,156.03,155.99,0.72]
[1762467366769,3.42230713,156.0,155.96,14.55186131]
[1762467366938,3.42230713,156.0,155.96,8.14]
[1762467367140,4.08230713,156.0,155.96,8.14]
[1762467367360,10.49295506,156.0,155.96,8.14]
[1762467367848,10.49295506,156.0,155.96,7.42]
[1762467367849,3.42230713,155.97,155.96,7.42]
[1762467368066,3.42230713,155.98,155.93,14.57307154]
[1762467368380,8.72919217,155.99,155.94,0.72]
[1762467368550,8.06919217,155.98,155.94,0.72]
[1762467368865,8.72919217,155.98,155.94,0.72]
[1762467369068,8.72919217,155.98,155.94,7.13263252]
[1762467369481,8.06919217,155.98,155.94,6.41263252]
[1762467369770,0.66,155.97,155.94,6.41263252]
[1762467369974,8.72919217,155.97,155.94,6.41263252]
[1762467370276,8.72919217,155.97,155.93,13.85300011]
[1762467370447,0.66,155.96,155.93,13.85300011]
[1762467372083,0.66,155.96,155.93,13.85292837]
[1762467372252,8.06919217,155.97,155.93,13.85292837]
[1762467372449,0.66,156.02,155.96,8.06919217]
[1762467372670,102.2,156.04,155.98,8.06919217]
[1762467372671,8.72919217,156.04,155.98,8.06919217]
[1762467372892,8.72919217,156.04,155.97,58.16]
[1762467373054,8.06919217,156.02,155.97,16.22919217]
[1762467373584,0.66,156.01,155.97,8.16]
[1762467373965,8.06919217,156.0,155.97,7.44]
[1762467374276,8.06919217,155.99,155.97,7.44]
[1762467374674,0.66,155.98,155.97,7.44]
[1762467375062,0.66,155.98,155.96,6.41188378]
[1762467375656,8.06919217,155.99,155.96,7.13188378]
[1762467375859,8.72919217,155.99,155.95,13.85220712]
[1762467376183,8.72919217,155.98,155.95,7.44]
[1762467376870,8.06919217,155.98,155.95,7.44]
[1762467377187,8.72919217,155.97,155.95,7.44]
[1762467377362,0.66,155.97,155.95,7.44]
[1762467377986,8.06919217,155.98,155.95,13.85229876]
[1762467378187,8.72919217,155.98,155.95,13.85229876]
[1762467380196,0.66,155.98,155.95,13.85229876]
[1762467380396,8.72919217,155.98,155.95,13.85229876]
[1762467382877,8.06919217,156.02,155.96,8.73919217]
[1762467383088,8.73919217,156.02,155.96,8.73919217]
[1762467383260,8.73919217,156.02,155.97,0.67]
[1762467383462,8.06919217,156.01,155.98,7.44]
[1762467383774,8.73919217,156.01,155.98,7.44]
[1762467384893,8.06919217,156.01,155.98,8.11]
[1762467385376,8.06919217,156.01,155.98,14.52072418]
[1762467385894,8.73919217,156.02,155.98,14.52072418]
[1762467386809,8.06919217,156.02,155.99,0.67]
[1762467387104,0.2,156.05,156.01,8.06919217]
[1762467387397,0.2,156.05,156.03,6.4090239]
[1762467387904,0.2,156.05,156.03,15.14821607]
[1762467388589,0.2,156.05,156.04,0.67]
[1762467389290,0.2,156.05,156.04,8.73919217]
[1762467389494,0.2,156.05,156.04,15.14780534]
[1762467389679,0.2,156.05,156.04,7.07861317]
[1762467390295,0.2,156.05,156.04,15.14780534]
[1762467393496,0.2,156.05,156.04,22.56780534]
[1762467395206,0.2,156.05,156.04,72.56780534]
[1762467395410,0.2,156.05,156.04,14.49861317]
[1762467396004,0.2,156.05,156.04,22.56780534]
[1762467396174,0.2,156.05,156.04,82.35663303]
[1762467396789,0.2,156.05,156.04,132.35663303]
[1762467398385,0.2,156.05,156.04,82.35663303]
[1762467398585,0.2,156.05,156.04,32.35663303]
[1762467400309,0.2,156.06,156.05,30.38082769]
[1762467400617,0.2,156.06,156.05,46.55001986]
[1762467401580,0.2,156.06,156.05,28.012]
[1762467401782,0.2,156.06,156.05,28.692]
[1762467402409,0.2,156.06,156.05,28.012]
[1762467402598,0.9,156.06,156.05,13.82820249]
[1762467402905,0.2,156.06,156.05,13.82820249]
[1762467403080,0.2,156.06,156.05,7.42]
[1762467403815,0.9,156.06,156.05,7.42]
[1762467404187,0.2,156.06,156.05,13.82820249]
[1762467404405,0.9,156.06,156.05,7.42]
[1762467406200,8.96919217,156.06,156.03,27.0010157]
[1762467406398,0.7,156.05,156.04,7.44]
[1762467407414,8.76919217,156.05,156.04,7.44]
[1762467407605,8.76919217,156.05,155.99,0.68]
[1762467407911,8.06919217,156.03,155.99,6.41063721]
[1762467408112,8.06919217,156.03,156.0,7.44]
[1762467408416,0.7,156.02,156.0,7.44]
[1762467409799,8.06919217,156.01,156.0,7.44]
[1762467410005,8.06919217,156.02,156.0,7.44]
[1762467410205,8.76919217,156.03,156.0,7.44]
[1762467410408,0.7,156.02,156.0,7.44]
[1762467410801,4.12138738,156.02,156.0,7.44]
[1762467410997,10.53086043,156.02,156.0,7.44]
[1762467411207,0.7,156.01,156.0,7.44]
[1762467412719,16.0213875,156.05,156.0,0.65]
[1762467412720,20.592,156.05,156.0,0.65]
[1762467412915,2.18988926,156.03,156.0,0.65]
[1762467413224,2.18988926,156.03,155.99,7.44]
[1762467413408,0.66,156.02,155.99,7.44]
[1762467414420,0.66,156.02,155.99,13.85044734]
[1762467415412,2.84988926,156.03,156.0,0.65]
[1762467415611,0.66,156.03,156.0,0.65]
[1762467415818,2.84988926,156.03,155.99,13.85044734]
[1762467416126,9.25893461,156.03,155.99,8.09]
[1762467416326,2.84988926,156.02,155.99,13.850568]
[1762467416527,2.18988926,156.02,155.99,14.500568]
[1762467416699,2.84988926,156.03,155.99,14.500568]
[1762467417024,0.66,156.03,155.99,14.500568]
[1762467419428,2.84988926,156.03,155.99,14.500568]
[1762467420730,3.04988926,156.06,156.0,2.83988926]
[1762467420931,2.38988926,156.06,156.01,2.18988926]
[1762467421134,2.18988926,156.03,156.0,7.42]
[1762467421301,0.66,156.05,156.0,7.42]
[1762467421497,2.18988926,156.02,156.0,7.42]
[1762467421908,2.84988926,156.01,155.95,6.41229638]
[1762467422101,2.84988926,156.01,155.96,7.44]
[1762467422102,2.18988926,156.0,155.96,7.44]
[1762467422302,2.84988926,156.0,155.96,7.44]
[1762467422523,0.80112798,156.03,155.97,0.65]
[1762467422829,6.41066735,155.99,155.96,7.44]
[1762467423020,2.18988926,155.97,155.96,7.44]
[1762467423528,2.84988926,155.97,155.96,7.44]
[1762467424028,2.18988926,155.97,155.94,7.44]
[1762467424223,2.18988926,155.97,155.94,8.09]
[1762467424435,8.60139511,155.97,155.94,8.09]
[1762467425133,2.18988926,155.97,155.94,14.50271323]
[1762467425731,9.26143196,155.97,155.94,7.44]
[1762467426820,2.84988926,155.97,155.94,14.50266513]
[1762467427021,2.18988926,156.0,155.95,0.65]
[1762467427229,2.18988926,156.01,155.95,23.43188926]
[1762467427527,2.84988926,156.0,155.95,20.592]
[1762467427833,2.84988926,156.0,155.96,0.65]
[1762467428041,2.18988926,156.01,155.97,7.44]
[1762467428543,2.18988926,156.01,155.98,6.41107834]
[1762467428914,2.18988926,156.01,155.98,7.06107834]
[1762467429115,2.84988926,156.02,155.98,7.06107834]
[1762467429714,9.25935565,156.02,155.98,7.06107834]
[1762467430813,2.84988926,156.02,155.98,7.06107834]
[1762467431559,2.18988926,156.01,155.98,0.65]
[1762467432149,2.18988926,156.01,155.98,7.0609825]
[1762467435347,8.59919903,156.03,155.99,0.65]
[1762467435515,2.18988926,156.03,155.99,0.65]
[1762467435956,2.84988926,156.03,155.99,0.65]
[1762467436327,9.25891885,156.03,155.99,0.65]
[1762467437036,8.59935681,156.02,155.99,0.65]
[1762467438242,2.18988926,156.02,155.99,7.06056714]
[1762467438617,9.25904341,156.03,155.99,7.06056714]
[1762467440730,9.25904341,156.03,156.0,0.65]
[1762467440918,2.84988926,156.03,156.0,0.65]
[1762467441124,3.04988926,156.06,156.0,8.07]
[1762467441535,0.86,156.06,156.01,0.65]
[1762467442040,0.2,156.06,156.01,2.83988926]
[1762467442222,0.66,156.05,156.01,0.65]
[1762467443449,0.66,156.05,156.02,6.40943468]
[1762467443849,7.06827459,156.05,156.01,0.66]
[1762467444026,8.59816385,156.05,156.01,0.66]
[1762467444221,9.28816385,156.05,156.01,0.66]
[1762467445139,0.69,156.04,156.01,0.66]
[1762467448749,8.59816385,156.05,156.01,7.06978161]
[1762467448926,7.09827459,156.05,156.01,7.06978161]
[1762467449126,9.28816385,156.05,156.02,0.66]
[1762467450751,0.69,156.05,156.02,0.66]
[1762467450927,7.09831553,156.05,156.02,0.66]
[1762467452747,9.28820479,156.05,156.02,0.66]
[1762467453140,8.59820479,156.05,156.0,13.83020985]
[1762467453342,0.69,156.04,156.01,0.66]
[1762467453650,9.28820479,156.05,156.01,0.66]
[1762467455130,8.59820479,156.05,156.01,0.66]
[1762467455534,9.28820479,156.05,156.01,0.66]
[1762467456764,7.09831553,156.05,156.01,7.06976411]
[1762467456957,9.28820479,156.05,156.01,7.06976411]
[1762467457262,0.69,156.04,156.01,7.06976411]
[1762467457436,8.59820479,156.05,156.01,6.40976411]
[1762467457636,9.28820479,156.05,156.02,0.65]
[1762467460167,0.2,156.06,156.02,7.05939497]
[1762467460344,0.2,156.06,156.04,2.18988926]
[1762467460664,0.2,156.06,156.05,2.18988926]
[1762467461055,0.2,156.06,156.05,2.83988926]
[1762467461245,0.2,156.06,156.03,8.07]
[1762467461445,0.2,156.06,156.04,0.65]
[1762467461642,3.07988926,156.06,156.02,7.05939497]
[1762467461873,3.07988926,156.06,156.03,8.07]
[1762467462350,8.79768161,156.06,156.03,8.07]
[1762467462547,9.48768161,156.06,156.03,8.07]
[1762467462745,8.79768161,156.06,156.03,14.47899996]
[1762467463966,8.79768161,156.06,156.03,8.07]
[1762467464269,2.18988926,156.04,156.01,7.42]
[1762467464450,2.87988926,156.05,156.01,7.42]
[1762467464649,2.87988926,156.05,156.01,8.07]
[1762467464859,9.2881,156.05,156.01,8.07]
[1762467465063,9.2881,156.05,155.95,32.05959116]
[1762467465064,2.18988926,156.02,155.95,50.65]
[1762467465266,2.18988926,155.97,155.93,6.41298336]
[1762467465452,2.18988926,155.97,155.94,7.42]
[1762467465647,0.69,155.97,155.94,7.42]
[1762467465853,2.87988926,155.97,155.94,8.07]
[1762467466064,0.69,155.97,155.94,8.07]
[1762467466358,0.69,155.97,155.94,14.48263431]
[1762467466666,8.60064722,155.99,155.95,0.65]
[1762467467165,2.87988926,156.02,155.96,2.18988926]
[1762467467462,0.69,156.02,155.97,9.60988926]
[1762467467667,2.87988926,156.02,155.97,9.60988926]
[1762467467970,2.87988926,156.02,155.98,0.65]
[1762467468175,2.87988926,156.01,155.98,0.65]
[1762467469046,2.18988926,156.02,155.98,7.06099183]
[1762467469757,8.59857131,156.04,155.99,2.83988926]
[1762467469949,2.18988926,156.03,155.99,0.65]
[1762467470153,2.18988926,156.03,155.98,8.60088109]
[1762467470154,2.18988926,156.02,155.98,7.06099183]
[1762467470465,2.18988926,156.02,155.99,0.65]
[1762467470774,8.59894539,156.03,155.99,0.65]
[1762467470971,8.59894539,156.03,156.0,7.42]
[1762467471152,2.18988926,156.04,156.0,7.42]
[1762467471352,9.28850406,156.04,156.0,8.07]
[1762467471657,2.87988926,156.03,156.0,8.07]
[1762467472066,2.87988926,156.03,156.0,7.42]
[1762467472369,10.52041403,156.03,156.0,7.42]
[1762467472556,4.08125925,156.02,156.0,7.42]
[1762467472756,3.42125925,156.03,156.0,8.14]
[1762467473353,3.42125925,156.05,156.01,0.72]
[1762467473844,0.2,156.06,156.01,4.14125925]
[1762467474050,3.62125925,156.06,156.02,0.72]
[1762467474357,3.62125925,156.06,156.03,7.42]
[1762467474554,0.2,156.06,156.03,17.25021006]
[1762467474759,0.2,156.06,156.04,4.14125925]
[1762467474962,0.2,156.06,156.04,0.72]
[1762467475182,0.2,156.06,156.05,0.72]
[1762467476371,0.2,156.06,156.05,7.12820249]
[1762467478774,0.2,156.06,156.05,10.54946174]
[1762467482392,0.2,156.06,156.05,20.33828943]
[1762467482952,0.2,156.1,156.07,50.0]
[1762467483158,0.2,156.1,156.09,3.42125925]
[1762467483578,0.2,156.1,156.09,4.14125925]
[1762467483772,0.2,156.1,156.09,63.93008694]
[1762467484158,0.2,156.1,156.09,70.33664725]
[1762467484670,1e-08,156.1,156.09,70.33664725]
[1762467487087,1e-08,156.1,156.09,89.76580157]
[1762467487283,1e-08,156.1,156.09,70.33664725]
[1762467487895,0.2,156.14,156.13,59.78882769]
[1762467488197,0.2,156.14,156.13,77.03500591]
[1762467488365,0.2,156.14,156.13,77.75500591]
[1762467494106,4.28125925,156.14,156.13,7.42]
[1762467494275,10.68576802,156.14,156.13,7.42]
[1762467494677,10.68576802,156.14,156.11,7.42]
[1762467494900,3.42125925,156.12,156.11,7.42]
[1762467495308,4.08125925,156.12,156.11,7.42]
[1762467497007,10.48658848,156.12,156.09,7.42]
[1762467497305,3.42125925,156.1,156.09,7.42]
[1762467497675,4.08125925,156.1,156.09,7.42]
[1762467497874,4.08125925,156.1,156.04,6.4084944]
[1762467498116,3.42125925,156.08,156.05,7.42]
[1762467498275,4.08125925,156.09,156.05,7.42]
[1762467498477,0.66,156.08,156.05,13.82809937]
[1762467498677,0.66,156.08,156.05,7.42]
[1762467498980,0.66,156.08,156.05,13.82812448]
[1762467499177,3.42125925,156.1,156.06,0.72]
[1762467499498,0.66,156.11,156.05,13.82812448]
[1762467499499,3.42125925,156.08,156.05,7.42]
[1762467499801,3.42125925,156.08,156.06,7.42]
[1762467500102,0.66,156.07,156.06,7.42]
[1762467502498,6.40610839,156.11,156.06,13.82765397]
[1762467502689,0.67,156.1,156.06,7.42]
[1762467503205,0.67,156.1,156.06,13.82777161]
[1762467503606,0.67,156.1,156.02,20.592]
[1762467503607,3.42125925,156.08,156.02,20.592]
[1762467503786,3.42125925,156.08,156.03,7.42]
[1762467504101,0.67,156.07,156.03,8.14]
[1762467504313,4.09125925,156.07,156.03,7.42]
[1762467504488,10.49902019,156.07,156.03,7.42]
[1762467504688,0.67,156.06,156.03,7.42]
[1762467504888,4.09125925,156.06,156.03,7.42]
[1762467505301,0.67,156.05,156.03,7.42]
[1762467507212,0.67,156.07,156.03,11.56125925]
[1762467507505,6.40546789,156.12,156.06,3.42125925]
[1762467507705,0.67,156.1,156.07,7.42]
[1762467507911,4.09125925,156.1,156.07,7.42]
[1762467508302,0.67,156.09,156.07,7.42]
[1762467511210,0.67,156.09,156.06,9.82892921]
[1762467511418,7.07609461,156.11,156.07,3.42125925]
[1762467511596,0.67,156.1,156.07,17.2483617]
[1762467511996,0.67,156.11,156.07,17.9683617]
[1762467512515,6.40545293,156.12,156.08,0.72]
[1762467512686,7.07545293,156.12,156.08,0.72]
[1762467513087,7.07545293,156.12,156.08,7.12678378]
[1762467513287,0.67,156.12,156.09,3.42125925]
[1762467513511,0.67,156.12,156.1,7.42]
[1762467513909,4.29125925,156.14,156.1,7.42]
[1762467514119,0.67,156.13,156.1,7.42]
[1762467516014,3.42125925,156.11,156.05,3.42125925]
[1762467516199,0.67,156.1,156.06,7.42]
[1762467517103,0.67,156.1,156.06,13.82757012]
[1762467517304,0.67,156.1,156.06,14.50757012]
[1762467517500,0.67,156.1,156.06,17.92882937]
[1762467518109,7.07624765,156.1,156.06,17.24882937]
[1762467518493,0.72,156.09,156.06,17.24882937]
[1762467518707,0.72,156.09,156.06,9.82882937]
[1762467518913,0.72,156.09,156.07,7.42]
[1762467520204,0.72,156.09,156.07,13.82737325]
[1762467520824,0.72,156.09,156.08,7.42]
[1762467522018,10.54658848,156.12,156.08,7.42]
[1762467522202,0.72,156.11,156.08,7.42]
[1762467522724,4.14125925,156.11,156.08,7.42]
[1762467523226,0.72,156.1,156.08,7.42]
[1762467523412,0.72,156.11,156.08,7.42]
[1762467524523,0.72,156.11,156.08,13.82693054]
[1762467525928,6.40502027,156.13,156.09,4.10125925]
[1762467526226,7.12502027,156.13,156.09,4.10125925]
[1762467526614,0.72,156.12,156.09,10.50772273]
[1762467527121,6.40502027,156.13,156.09,10.50772273]
[1762467527316,0.72,156.13,156.1,0.68]
[1762467527513,0.72,156.13,156.11,7.42]
[1762467528528,7.12503845,156.13,156.11,7.42]
[1762467528731,0.72,156.12,156.11,7.42]
[1762467529400,0.72,156.12,156.09,7.42]
[1762467529627,4.14125925,156.12,156.09,7.42]
[1762467530014,0.72,156.11,156.09,7.42]
[1762467530215,3.42125925,156.12,156.09,7.42]
[1762467530216,10.54667003,156.12,156.09,7.42]
[1762467530934,7.12541078,156.12,156.09,7.42]
[1762467531313,0.72,156.11,156.09,7.42]
[1762467534338,7.12582034,156.11,156.07,7.42]
[1762467534702,0.72,156.1,156.07,7.42]
[1762467535109,0.72,156.1,156.07,8.09]
[1762467535339,0.72,156.1,156.07,16.6844947]
[1762467535515,6.40582034,156.11,156.07,16.6844947]
[1762467535716,0.72,156.11,156.08,0.67]
[1762467536018,6.4054613,156.12,156.08,2.8574848]
[1762467536221,7.12508116,156.13,156.09,2.8574848]
[1762467536625,0.72,156.12,156.09,0.67]
[1762467536824,0.72,156.12,156.08,2.8574848]
[1762467537433,7.12553437,156.12,156.09,0.67]
[1762467537821,0.72,156.11,156.08,6.40692315]
[1762467538025,0.72,156.11,156.08,7.07692315]
[1762467539722,7.12581673,156.11,156.07,7.42]
[1762467540119,0.72,156.1,156.07,7.42]
[1762467540326,6.40537453,156.12,156.07,16.68477299]
[1762467540634,6.40537453,156.12,156.08,2.8574848]
[1762467541028,6.40537453,156.12,156.09,0.67]
[1762467541235,0.72,156.11,156.07,7.42]
[1762467541423,0.72,156.11,156.04,2.1874848]
[1762467541424,2.9074848,156.11,156.04,2.1874848]
[1762467541619,2.1874848,156.08,155.99,6.41066735]
[1762467541820,2.1874848,156.08,156.02,2.1874848]
[1762467542045,0.72,156.07,156.03,7.42]
[1762467542424,0.72,156.07,156.03,8.09]
[1762467542643,20.592,156.09,156.04,2.8574848]
[1762467542848,21.312,156.09,156.04,2.8574848]
[1762467543041,7.12697078,156.08,156.04,2.8574848]
[1762467543426,0.72,156.07,156.03,13.82870277]
[1762467543645,9.31445558,156.08,156.04,0.67]
[1762467545736,0.72,156.08,156.04,7.07859897]
[1762467546526,0.72,156.08,156.05,0.67]
[1762467547043,16.01327516,156.13,156.07,2.1874848]
[1762467547348,16.01327516,156.13,156.08,2.8574848]
[1762467547554,6.60465038,156.14,156.1,6.4061499]
[1762467547727,6.60465038,156.14,156.09,10.2774848]
[1762467547923,8.79213518,156.14,156.1,0.67]
[1762467548234,7.32465038,156.14,156.1,0.67]
[1762467548560,6.60465038,156.14,156.1,0.67]
[1762467549046,6.60465038,156.14,156.1,7.07605116]
[1762467549438,6.60465038,156.14,156.11,0.67]
[1762467549752,0.2,156.14,156.11,0.67]
[1762467550329,6.60453153,156.14,156.11,0.67]
[1762467551865,0.72,156.13,156.09,13.82648088]
[1762467552050,2.9074848,156.13,156.09,13.82648088]
[1762467552242,2.1874848,156.13,156.1,0.67]
[1762467553053,8.59268736,156.13,156.1,0.67]
[1762467553849,6.40520256,156.13,156.1,0.67]
[1762467556257,8.59268736,156.13,156.1,0.67]
[1762467557158,2.9074848,156.12,156.09,7.42]
[1762467557850,2.1874848,156.12,156.09,8.09]
[1762467558046,9.31268736,156.13,156.09,7.42]
[1762467558249,6.40520256,156.13,156.1,0.67]
[1762467563263,2.8474848,156.12,156.09,7.42]
[1762467563668,2.1874848,156.11,156.09,7.42]
[1762467564163,8.59358147,156.11,156.09,7.42]
[1762467564391,2.1874848,156.1,156.09,7.42]
[1762467564543,2.1874848,156.1,156.09,0.67]
[1762467564743,6.40609667,156.11,156.09,0.67]
[1762467565061,9.25358147,156.11,156.07,0.67]
[1762467565263,6.40550528,156.12,156.07,2.8574848]
[1762467565663,6.40550528,156.12,156.08,0.67]
[1762467565856,8.59299008,156.12,156.08,0.67]
[1762467566450,9.25299008,156.12,156.08,0.67]
[1762467566865,8.59299008,156.12,156.08,0.67]
[1762467567057,6.40550528,156.12,156.08,7.07685571]
[1762467567551,6.40550528,156.12,156.09,0.67]
[1762467567864,2.8474848,156.13,156.09,0.67]
[1762467567865,2.1874848,156.13,156.09,0.67]
[1762467568259,6.40532923,156.12,156.09,0.67]
[1762467568656,8.59250834,156.13,156.09,0.67]
[1762467568966,6.40502354,156.13,156.09,0.67]
[1762467569265,9.25250834,156.13,156.09,0.67]
[1762467569468,7.06502354,156.13,156.09,0.67]
[1762467570170,9.25250834,156.13,156.09,0.67]
[1762467570671,0.66,156.13,156.09,7.07655332]
[1762467570980,9.45216243,156.14,156.1,0.67]
[1762467571475,8.79216243,156.14,156.1,0.67]
[1762467571679,2.8474848,156.13,156.09,0.67]
[1762467572278,2.1874848,156.12,156.09,0.67]
[1762467572580,24.80343436,156.14,156.09,0.67]
[1762467572877,25.46343436,156.14,156.09,7.07645593]
[1762467573271,23.27594956,156.14,156.1,0.67]
[1762467573460,25.46343436,156.14,156.1,0.67]
[1762467575266,23.27594956,156.14,156.1,0.67]
[1762467575577,7.26467763,156.14,156.1,0.67]
[1762467575779,9.45216243,156.14,156.1,0.67]
[1762467576167,8.79216243,156.14,156.1,7.07610208]
[1762467576666,9.45216243,156.14,156.11,0.67]
[1762467577675,8.79216243,156.14,156.11,0.67]
[1762467577863,0.2,156.14,156.11,0.67]
[1762467578569,7.27460441,156.14,156.11,0.67]
[1762467579068,6.60460441,156.14,156.11,0.67]
[1762467579472,0.2,156.14,156.12,9.6074848]
[1762467579664,0.2,156.14,156.13,2.8774848]
[1762467581372,0.2,156.14,156.13,9.28240377]
[1762467582465,0.2,156.18,156.16,50.0]
[1762467582799,0.2,156.18,156.17,19.39631249]
[1762467582964,0.2,156.2,156.18,50.0]
[1762467583281,0.2,156.22,156.19,11.97631249]
[1762467583482,0.2,156.22,156.2,16.00953345]
[1762467583673,0.2,156.22,156.2,16.69953345]
[1762467584792,0.2,156.22,156.2,76.48836114]
[1762467585092,0.2,156.22,156.21,61.97631249]
[1762467585381,1e-08,156.23,156.22,56.40122903]
[1762467585589,1e-08,156.23,156.22,59.27871383]
[1762467586370,1e-08,156.23,156.22,69.06754152]
[1762467586586,1e-08,156.23,156.22,19.06754152]
[1762467587085,1e-08,156.23,156.22,29.87071383]
[1762467587288,1e-08,156.23,156.22,30.8894848]
[1762467588394,1e-08,156.23,156.22,37.29071383]
[1762467590676,1e-08,156.23,156.22,28.012]
[1762467590882,1e-08,156.23,156.22,37.29071383]
[1762467591183,1e-08,156.23,156.22,47.07954152]
[1762467591694,1e-08,156.23,156.22,26.48754152]
[1762467591866,1e-08,156.23,156.22,76.48754152]
[1762467592270,0.2,156.26,156.25,80.38082769]
[1762467592490,0.2,156.26,156.25,89.98831249]
[1762467592692,0.2,156.26,156.25,90.64831249]
[1762467593874,0.2,156.26,156.25,97.04831249]
[1762467596403,0.2,156.26,156.25,98.26885841]
[1762467599693,1e-08,156.26,156.25,98.26885841]
[1762467599897,1e-08,156.27,156.26,57.05959042]
[1762467600106,1e-08,156.27,156.26,60.46762114]
[1762467600688,0.2,156.3,156.29,80.38082769]
[1762467600884,0.2,156.3,156.29,91.84885841]
[1762467602586,0.2,156.3,156.29,98.24722042]
[1762467603411,0.2,156.3,156.29,48.24722042]
[1762467604906,0.2,156.3,156.29,37.79839273]
[1762467605392,0.86,156.3,156.29,27.992]
[1762467605589,0.86,156.3,156.27,3.40803072]